bitfinex-derivatives/quotes_BTCF0:USTF0_20250508
["timestamp","ask_amount","ask_price","bid_price","bid_amount"]
[1746716785650,0.007,99524.0,99523.0,0.52737385]
[1746716786040,0.007,99524.0,99523.0,0.51207202]
[1746716786348,0.001,99524.0,99523.0,0.51207202]
[1746716786940,0.002,99543.0,99542.0,0.20089]
[1746716787242,0.002,99543.0,99542.0,0.21659197]
[1746716787645,0.002,99543.0,99542.0,0.31879197]
[1746716787942,0.002,99543.0,99542.0,0.32879197]
[1746716788145,0.002,99543.0,99542.0,0.49679197]
[1746716788538,0.005,99543.0,99542.0,0.49679197]
[1746716788943,0.205888,99543.0,99542.0,0.19370197]
[1746716789159,0.005,99543.0,99542.0,0.21659197]
[1746716789351,0.008,99543.0,99542.0,0.21659197]
[1746716789648,0.008,99543.0,99542.0,0.23873153]
[1746716790041,0.208888,99543.0,99542.0,0.22873153]
[1746716790240,0.208888,99543.0,99542.0,0.39673153]
[1746716790443,0.208888,99543.0,99542.0,0.40673153]
[1746716790642,0.208888,99543.0,99542.0,0.42189176]
[1746716790845,0.008,99543.0,99542.0,0.42189176]
[1746716791041,0.208888,99543.0,99542.0,0.22100176]
[1746716791235,0.208888,99543.0,99542.0,0.20583978]
[1746716791535,0.208888,99543.0,99542.0,0.40672978]
[1746716791738,0.208888,99543.0,99542.0,0.20583978]
[1746716791945,0.208888,99543.0,99542.0,0.19013956]
[1746716792140,0.208888,99543.0,99542.0,0.21302956]
[1746716792346,0.008,99543.0,99542.0,0.22873037]
[1746716792540,0.208888,99543.0,99542.0,0.22873029]
[1746716792739,0.208888,99543.0,99542.0,0.27933029]
[1746716793149,0.208888,99543.0,99542.0,0.06273956]
[1746716793352,0.208888,99543.0,99542.0,0.26362956]
[1746716793552,0.205888,99543.0,99542.0,0.26362956]
[1746716793751,0.205888,99543.0,99542.0,0.27878984]
[1746716794643,0.205888,99543.0,99542.0,0.26362956]
[1746716795048,0.205888,99543.0,99542.0,0.37182956]
[1746716795553,0.203888,99543.0,99542.0,0.37182956]
[1746716795752,0.203888,99543.0,99542.0,0.38713748]
[1746716797550,0.003,99543.0,99542.0,0.40283909]
[1746716798146,0.003,99543.0,99542.0,0.5708381]
[1746716799158,0.203888,99543.0,99542.0,0.4028381]
[1746716799753,0.258488,99543.0,99542.0,0.4028381]
[1746716799955,0.258488,99543.0,99542.0,0.4028385]
[1746716800454,0.00135,99547.0,99542.0,0.5627485]
[1746716800659,0.00135,99547.0,99546.0,0.200882]
[1746716800956,0.001,99549.0,99548.0,0.2008779]
[1746716801160,0.001,99549.0,99548.0,0.23188684]
[1746716801555,0.001,99549.0,99548.0,0.33558684]
[1746716802147,0.001,99549.0,99548.0,0.50358684]
[1746716802760,0.004,99549.0,99548.0,0.50358684]
[1746716803162,0.004,99549.0,99548.0,0.33558684]
[1746716803861,0.004,99549.0,99548.0,0.33558501]
[1746716804059,0.00150839,99563.0,99561.0,0.2008517]
[1746716804252,0.0496,99579.0,99572.0,0.2008295]
[1746716804557,0.12725692,99586.0,99585.0,0.2008033]
[1746716804758,0.18005692,99586.0,99585.0,0.21649851]
[1746716805160,0.12725692,99586.0,99585.0,0.38449851]
[1746716805559,0.17665692,99586.0,99585.0,0.38449719]
[1746716805857,0.18565692,99586.0,99585.0,0.38549719]
[1746716806052,0.38645822,99586.0,99585.0,0.39740448]
[1746716806257,0.39445822,99586.0,99585.0,0.23040448]
[1746716806455,0.39445822,99586.0,99585.0,0.02960118]
[1746716806761,0.44525822,99586.0,99585.0,0.33860448]
[1746716807463,0.44525822,99586.0,99585.0,0.33860455]
[1746716807653,0.44525822,99586.0,99585.0,0.13780125]
[1746716807852,0.3180013,99586.0,99585.0,0.12210729]
[1746716808055,0.3180013,99586.0,99585.0,0.33860562]
[1746716808254,0.3180013,99586.0,99585.0,0.33860561]
[1746716809555,0.3180013,99586.0,99585.0,0.13780231]
[1746716809958,0.3180013,99586.0,99585.0,0.33860561]
[1746716810165,0.4860013,99586.0,99585.0,0.33860561]
[1746716810366,0.4860013,99586.0,99585.0,0.14528542]
[1746716810566,0.4860013,99586.0,99585.0,0.03708542]
[1746716810860,0.4860013,99586.0,99585.0,0.13776231]
[1746716811162,0.4860013,99586.0,99585.0,0.13776288]
[1746716811766,0.4790013,99586.0,99585.0,0.12485559]
[1746716811950,0.4790013,99586.0,99585.0,0.10916]
[1746716812151,0.4790013,99586.0,99585.0,0.001]
[1746716812354,0.2008255,99574.0,99573.0,0.10816]
[1746716812553,0.2008255,99574.0,99573.0,0.12385688]
[1746716812554,0.5616255,99574.0,99573.0,0.12385688]
[1746716813260,0.7296255,99574.0,99573.0,0.01569688]
[1746716813663,0.2008356,99569.0,99568.0,0.10816]
[1746716813857,0.2008356,99569.0,99568.0,0.12385793]
[1746716814166,0.3688356,99569.0,99568.0,0.32469553]
[1746716814664,0.168,99569.0,99568.0,0.21653553]
[1746716814865,0.168,99569.0,99568.0,0.32469481]
[1746716815165,0.2008356,99569.0,99568.0,0.42780351]
[1746716815551,0.2008333,99571.0,99570.0,0.2008315]
[1746716815751,0.2008333,99571.0,99570.0,0.21652871]
[1746716815963,0.2008333,99571.0,99570.0,0.26942871]
[1746716816663,0.2008333,99571.0,99570.0,0.2537315]
[1746716816860,0.2008333,99571.0,99570.0,0.28464012]
[1746716817252,0.2018333,99571.0,99570.0,0.39212012]
[1746716820569,0.001,99571.0,99570.0,0.44371956]
[1746716821165,0.001,99571.0,99570.0,0.61171956]
[1746716821469,0.2018315,99571.0,99570.0,0.61171956]
[1746716821770,0.001,99571.0,99570.0,0.61171876]
[1746716821971,0.001,99571.0,99570.0,0.61271876]
[1746716822175,0.001,99571.0,99570.0,0.44471876]
[1746716822373,0.00135,99572.0,99571.0,0.2008315]
[1746716822573,0.00135,99572.0,99571.0,0.33403876]
[1746716822774,0.00135,99572.0,99571.0,0.44151876]
[1746716823971,0.5629795,99572.0,99571.0,0.03190726]
[1746716824173,0.7309795,99572.0,99571.0,0.03290726]
[1746716824571,0.7309795,99572.0,99571.0,0.34121876]
[1746716825070,0.7309795,99572.0,99571.0,0.14038726]
[1746716825276,0.5629795,99572.0,99571.0,0.19058726]
[1746716825575,0.5629795,99572.0,99571.0,0.19058761]
[1746716826175,0.5629795,99572.0,99571.0,0.39141911]
[1746716826374,0.5629795,99572.0,99571.0,0.19058761]
[1746716826573,0.6171795,99572.0,99571.0,0.19058761]
[1746716826773,0.6171795,99572.0,99571.0,0.14038761]
[1746716827280,0.7851795,99572.0,99571.0,0.14038956]
[1746716828079,0.58435,99572.0,99571.0,0.34122106]
[1746716828271,0.36215,99572.0,99571.0,0.34122106]
[1746716828465,0.5629795,99572.0,99571.0,0.34122106]
[1746716828670,0.5629795,99572.0,99571.0,0.14038956]
[1746716829377,0.6174795,99572.0,99571.0,0.14038956]
[1746716829676,0.6174795,99572.0,99571.0,0.34122106]
[1746716830781,0.6174795,99572.0,99571.0,0.14038956]
[1746716830974,0.6174795,99572.0,99571.0,0.14038841]
[1746716831174,0.7854795,99572.0,99571.0,0.14038841]
[1746716831683,0.8393795,99572.0,99571.0,0.14038841]
[1746716832181,0.6713795,99572.0,99571.0,0.03290841]
[1746716835283,0.8393795,99572.0,99571.0,0.03290841]
[1746716836589,0.8393795,99572.0,99571.0,0.03290945]
[1746716837178,0.6713795,99572.0,99571.0,0.03290945]
[1746716837783,0.00135,99572.0,99571.0,0.23374095]
[1746716838186,0.00135,99572.0,99571.0,0.40174095]
[1746716838387,0.00135,99572.0,99571.0,0.46694095]
[1746716838581,0.2031795,99572.0,99571.0,0.46594095]
[1746716838979,0.00235,99572.0,99571.0,0.46494095]
[1746716839189,0.00335,99572.0,99571.0,0.29794095]
[1746716839687,0.2041795,99572.0,99571.0,0.29794095]
[1746716840080,0.2021795,99572.0,99571.0,0.29894095]
[1746716840281,0.2021795,99572.0,99571.0,0.08810945]
[1746716840878,0.3098795,99572.0,99571.0,0.08810945]
[1746716842078,0.2549795,99572.0,99571.0,0.08810945]
[1746716842280,0.2536295,99572.0,99571.0,0.08710892]
[1746716842476,0.2556295,99572.0,99571.0,0.08710892]
[1746716842690,0.2566295,99572.0,99571.0,0.08610892]
[1746716843088,0.2546295,99572.0,99571.0,0.08610892]
[1746716843287,0.2556295,99572.0,99571.0,0.08610892]
[1746716844983,0.2566295,99572.0,99571.0,0.08610892]
[1746716845492,0.2038295,99572.0,99571.0,0.28694042]
[1746716845791,0.003,99572.0,99571.0,0.64774042]
[1746716846178,0.003,99572.0,99571.0,0.81574042]
[1746716846382,0.003,99572.0,99571.0,0.82574042]
[1746716846590,0.001,99572.0,99571.0,0.82674042]
[1746716847398,0.2008187,99578.0,99577.0,0.2008194]
[1746716847585,0.2008187,99578.0,99577.0,0.21651691]
[1746716847888,0.2008187,99578.0,99577.0,0.23155027]
[1746716848397,0.2510176,99580.0,99579.0,0.2008154]
[1746716848692,0.2510176,99580.0,99579.0,0.21633486]
[1746716848891,0.2510176,99580.0,99579.0,0.23154627]
[1746716849390,0.2008143,99580.0,99579.0,0.23154627]
[1746716849591,0.2008143,99580.0,99579.0,0.23172177]
[1746716849896,0.35225773,99584.0,99583.0,0.2008073]
[1746716850084,0.35225773,99584.0,99583.0,0.21650226]
[1746716850288,0.40925773,99584.0,99583.0,0.23171367]
[1746716850793,0.15144933,99584.0,99583.0,0.28871367]
[1746716851187,0.2008053,99584.0,99583.0,0.33891507]
[1746716851488,0.2018053,99584.0,99583.0,0.33884076]
[1746716852293,0.2038053,99584.0,99583.0,0.08783206]
[1746716853086,0.2038053,99584.0,99583.0,0.27342795]
[1746716853294,0.2038053,99584.0,99583.0,0.27306236]
[1746716853485,0.2038053,99584.0,99583.0,0.27289771]
[1746716854395,0.2038053,99584.0,99583.0,0.28811442]
[1746716854891,0.2038053,99584.0,99583.0,0.08730712]
[1746716855295,0.2038053,99584.0,99583.0,0.0872827]
[1746716855596,0.2038053,99584.0,99583.0,0.07206599]
[1746716856886,0.2038053,99584.0,99583.0,0.27287329]
[1746716857087,0.003,99584.0,99583.0,0.27287329]
[1746716857284,0.003,99584.0,99583.0,0.28813638]
[1746716857902,0.003,99584.0,99583.0,0.34463638]
[1746716858200,0.003,99584.0,99583.0,0.51263638]
[1746716862500,0.2038053,99584.0,99583.0,0.36220908]
[1746716862701,0.2038053,99584.0,99583.0,0.56301638]
[1746716863200,0.2038053,99584.0,99583.0,0.39501638]
[1746716863901,0.003,99584.0,99583.0,0.39501638]
[1746716865202,0.003,99584.0,99583.0,0.56301638]
[1746716865603,0.003,99584.0,99583.0,0.54775329]
[1746716866998,0.003,99584.0,99583.0,0.56316637]
[1746716867193,0.002,99584.0,99583.0,0.56316637]
[1746716867401,0.00251,99588.0,99587.0,0.2007992]
[1746716867705,0.00251,99588.0,99587.0,0.23144292]
[1746716868398,0.00251,99588.0,99587.0,0.23344292]
[1746716868802,0.00251,99588.0,99587.0,0.59424292]
[1746716869199,0.2585897,99592.0,99591.0,0.2007912]
[1746716869404,0.1156,99592.0,99591.0,0.23143492]
[1746716870205,0.1156,99592.0,99591.0,0.2318969]
[1746716870809,0.1,99600.0,99598.0,0.2007771]
[1746716870997,0.0548,99599.0,99598.0,0.21646972]
[1746716871202,0.3133751,99599.0,99598.0,0.2318828]
[1746716871723,0.1126,99599.0,99598.0,0.2318828]
[1746716872225,0.1126,99599.0,99598.0,0.24314476]
[1746716872817,0.3133751,99599.0,99598.0,0.24314476]
[1746716873118,0.1126,99599.0,99598.0,0.24314476]
[1746716873429,0.1126,99599.0,99598.0,0.24414476]
[1746716874127,0.3133751,99599.0,99598.0,0.24414476]
[1746716874624,0.3133751,99599.0,99598.0,0.04336766]
[1746716875420,0.3133751,99599.0,99589.0,0.2007947]
[1746716875421,0.2008157,99579.0,99573.0,0.0502066]
[1746716875626,0.2008071,99585.0,99584.0,0.2008013]
[1746716875828,0.2510004,99587.0,99586.0,0.2008013]
[1746716876023,0.2510004,99587.0,99586.0,0.21222551]
[1746716877323,0.2510004,99587.0,99586.0,0.01142421]
[1746716877626,0.2510004,99587.0,99586.0,0.001]
[1746716877831,0.6118004,99587.0,99586.0,0.001]
[1746716878029,0.0502043,99579.0,99568.0,0.0535]
[1746716878229,0.3608,99575.0,99565.0,0.20172796]
[1746716878530,0.2008266,99574.0,99573.0,0.2008275]
[1746716878723,0.2554266,99574.0,99573.0,0.2008275]
[1746716879329,0.0546,99574.0,99573.0,0.2008275]
[1746716879535,0.2008196,99579.0,99578.0,0.2008129]
[1746716879721,0.255412,99581.0,99580.0,0.2008134]
[1746716880621,0.0546,99581.0,99580.0,0.2008134]
[1746716880918,0.2554113,99581.0,99580.0,0.2008134]
[1746716881123,0.2008134,99580.0,99579.0,0.0555]
[1746716881324,0.2008134,99580.0,99579.0,0.2563154]
[1746716881626,0.6118031,99587.0,99586.0,0.2008013]
[1746716882223,0.3608,99587.0,99586.0,0.2008013]
[1746716882426,0.3608,99587.0,99586.0,0.2587013]
[1746716882621,0.2007992,99587.0,99586.0,0.2587013]
[1746716883028,0.2007992,99587.0,99586.0,0.2008013]
[1746716884625,0.2008013,99586.0,99585.0,0.0555]
[1746716885534,0.2008013,99586.0,99585.0,0.2563033]
[1746716885935,0.2008013,99586.0,99585.0,0.0555]
[1746716886237,0.2510186,99581.0,99580.0,0.2008127]
[1746716886729,0.2008134,99580.0,99579.0,0.0546]
[1746716886935,0.2549134,99580.0,99579.0,0.0546]
[1746716887135,0.2549134,99580.0,99579.0,0.2554154]
[1746716887433,0.2549134,99580.0,99579.0,0.27111105]
[1746716887634,0.2549134,99580.0,99579.0,0.28647726]
[1746716888235,0.2549134,99580.0,99579.0,0.07029565]
[1746716888438,0.2549134,99580.0,99579.0,0.06992087]
[1746716888827,0.2549134,99580.0,99579.0,0.17624087]
[1746716889627,0.2549134,99580.0,99579.0,0.37705627]
[1746716889833,0.2549134,99580.0,99579.0,0.17624087]
[1746716890032,0.2549134,99580.0,99579.0,0.37705627]
[1746716890537,0.0541,99580.0,99579.0,0.37705627]
[1746716890736,0.0541,99580.0,99579.0,0.43355627]
[1746716890936,0.2008092,99583.0,99582.0,0.2008093]
[1746716891235,0.00251,99584.0,99583.0,0.3115073]
[1746716891437,0.00251,99584.0,99583.0,0.32682817]
[1746716892226,0.00251,99584.0,99583.0,0.32703009]
[1746716892943,0.00251,99584.0,99583.0,0.42745009]
[1746716893241,0.00251,99584.0,99583.0,0.66245009]
[1746716893941,0.00251,99584.0,99583.0,0.66445009]
[1746716894342,1e-07,99584.0,99583.0,1.09425009]
[1746716894643,0.1278764,99595.0,99594.0,0.2007851]
[1746716894834,0.1278764,99595.0,99594.0,0.21630789]
[1746716895231,0.3286595,99595.0,99594.0,0.12184279]
[1746716895642,0.3286595,99595.0,99594.0,0.37882789]
[1746716895835,0.3286595,99595.0,99594.0,0.37875723]
[1746716896141,0.3286595,99595.0,99594.0,0.37875724]
[1746716896444,0.2007803,99597.0,99596.0,0.2007811]
[1746716896742,0.3141803,99597.0,99596.0,0.21623324]
[1746716897442,0.3141803,99597.0,99596.0,0.21723324]
[1746716897830,0.1134,99597.0,99596.0,0.21723324]
[1746716898041,0.00136,99598.0,99597.0,0.2007791]
[1746716898335,0.00136,99598.0,99597.0,0.32843651]
[1746716898932,0.2021371,99598.0,99597.0,0.32843651]
[1746716899346,0.3127371,99598.0,99597.0,0.26993651]
[1746716899846,0.3127371,99598.0,99597.0,0.2545791]
[1746716901639,0.11196,99598.0,99597.0,0.2545791]
[1746716903947,0.11196,99598.0,99597.0,0.2555791]
[1746716904148,0.05886,99598.0,99597.0,0.2555791]
[1746716904349,0.00136,99598.0,99597.0,0.2555791]
[1746716904547,0.00136,99598.0,99597.0,0.2565791]
[1746716905149,0.00136,99598.0,99597.0,0.4245791]
[1746716907249,0.00136,99598.0,99597.0,0.2565791]
[1746716908840,0.00136,99598.0,99597.0,0.27218901]
[1746716909346,0.00136,99598.0,99597.0,0.44018901]
[1746716910652,0.00136,99598.0,99597.0,0.54958901]
[1746716911856,0.00136,99598.0,99597.0,0.5339791]
[1746716912857,0.00136,99598.0,99597.0,0.4800791]
[1746716913252,0.00136,99598.0,99597.0,0.3120791]
[1746716915166,0.00136,99598.0,99597.0,0.4177991]
[1746716919858,0.00136,99598.0,99597.0,0.43329352]
[1746716920161,0.03619832,99600.0,99597.0,0.60129352]
[1746716920362,0.11,99623.0,99622.0,0.2007287]
[1746716920563,0.11,99623.0,99622.0,0.32194312]
[1746716920859,0.46038,99623.0,99622.0,0.32194312]
[1746716921065,0.62838,99623.0,99622.0,0.32194312]
[1746716921451,0.8291067,99623.0,99622.0,0.12121442]
[1746716921651,0.8331067,99623.0,99622.0,0.12121442]
[1746716921857,0.8331067,99623.0,99622.0,0.14001677]
[1746716922055,0.8331067,99623.0,99622.0,0.12452235]
[1746716922258,0.5831067,99623.0,99622.0,0.12452235]
[1746716922962,0.5881067,99623.0,99622.0,0.12552235]
[1746716923563,0.6395067,99623.0,99622.0,0.12552235]
[1746716924264,0.4715067,99623.0,99622.0,0.01980235]
[1746716928165,0.6395067,99623.0,99622.0,0.01980235]
[1746716935071,0.6395067,99623.0,99622.0,0.03548892]
[1746716935479,0.6395067,99623.0,99622.0,0.03549222]
[1746716936673,0.5391267,99623.0,99622.0,0.03549222]
[1746716938073,0.5391267,99623.0,99622.0,0.01980235]
[1746716940071,0.2007751,99599.0,99588.0,0.10508]
[1746716940279,0.2007952,99589.0,99588.0,0.10508]
[1746716940573,0.2007952,99589.0,99588.0,0.11656042]
[1746716941172,0.4764952,99589.0,99588.0,0.11656042]
[1746716941373,0.4764952,99589.0,99588.0,0.12413718]
[1746716941569,0.4764952,99589.0,99588.0,0.17563718]
[1746716941770,0.4764952,99589.0,99588.0,0.16806042]
[1746716941967,0.4764952,99589.0,99588.0,0.36885762]
[1746716942172,0.3084952,99589.0,99588.0,0.36885762]
[1746716942368,0.3084952,99589.0,99588.0,0.37085762]
[1746716943276,0.3084952,99589.0,99588.0,0.37285762]
[1746716944579,0.054,99589.0,99588.0,0.37285762]
[1746716946772,0.3608,99591.0,99590.0,0.2007932]
[1746716947176,0.3608,99591.0,99590.0,0.3687932]
[1746716947473,0.8608,99591.0,99590.0,0.4769932]
[1746716947874,0.8608,99591.0,99590.0,0.4789932]
[1746716948074,0.8608,99591.0,99590.0,0.4809932]
[1746716948274,0.5,99591.0,99590.0,0.4809932]
[1746716948774,0.81876498,99604.0,99603.0,0.200767]
[1746716948973,0.81876498,99604.0,99603.0,0.210767]
[1746716949380,0.6909,99604.0,99603.0,0.210767]
[1746716949680,0.2007613,99606.0,99605.0,0.200763]
[1746716949871,0.200765,99604.0,99603.0,0.2617664]
[1746716950071,0.2007615,99606.0,99605.0,0.2007602]
[1746716950775,0.7007615,99606.0,99605.0,0.2007602]
[1746716951381,0.7017615,99606.0,99605.0,0.2007602]
[1746716951773,0.503,99606.0,99605.0,0.2007602]
[1746716952374,0.003,99606.0,99605.0,0.3787602]
[1746716955175,0.003,99606.0,99605.0,0.39396604]
[1746716955376,0.81876498,99623.0,99622.0,0.2007287]
[1746716955586,0.12786498,99623.0,99622.0,0.32101181]
[1746716956192,0.12786498,99623.0,99622.0,1.17939181]
[1746716956193,0.0660997,99623.0,99622.0,1.17939181]
[1746716956482,0.0660997,99623.0,99622.0,1.28769181]
[1746716956674,0.0660997,99635.0,99623.0,0.2007267]
[1746716956971,0.0513,99634.0,99623.0,0.32072981]
[1746716957178,0.0025,99630.0,99623.0,0.32072981]
[1746716958079,0.0025,99630.0,99623.0,0.3055267]
[1746716958284,0.01,99624.0,99623.0,0.3065267]
[1746716960188,0.01,99624.0,99623.0,0.4745267]
[1746716961089,0.01,99624.0,99623.0,0.3065267]
[1746716972496,0.0632,99624.0,99623.0,0.3065267]
[1746716973703,0.0632,99624.0,99623.0,0.4108867]
[1746716974605,0.0632,99624.0,99623.0,0.15706]
[1746716974606,0.2639247,99624.0,99623.0,0.15706]
[1746716974905,0.2639247,99624.0,99623.0,0.3577867]
[1746716975495,0.0632,99624.0,99623.0,0.3577867]
[1746716975695,0.01,99624.0,99623.0,0.37296611]
[1746716975899,0.002,99633.0,99632.0,0.2007086]
[1746716976098,0.002,99633.0,99632.0,0.74468801]
[1746716976303,0.002,99633.0,99632.0,0.74468276]
[1746716976499,0.002,99633.0,99632.0,0.84788276]
[1746716977105,0.002,99633.0,99632.0,0.94825075]
[1746716977305,0.2006591,99657.0,99647.0,0.0501692]
[1746716977306,0.04941586,99654.0,99647.0,0.0501692]
[1746716977499,0.68308424,99673.0,99654.0,0.2006642]
[1746716977701,0.0552,99662.0,99654.0,0.21583836]
[1746716977903,0.0552,99662.0,99654.0,0.31903836]
[1746716978104,0.0552,99662.0,99654.0,0.31954595]
[1746716979007,0.2006322,99670.0,99654.0,0.31954595]
[1746716979210,0.2006322,99670.0,99654.0,0.48754595]
[1746716979508,0.2006341,99669.0,99654.0,0.48754595]
[1746716979811,0.0501598,99667.0,99654.0,0.48754595]
[1746716980007,0.0519,99672.0,99654.0,0.48754595]
[1746716980008,0.0549,99662.0,99654.0,0.48754595]
[1746716980213,0.0519,99672.0,99654.0,0.48754595]
[1746716980404,0.15744933,99655.0,99654.0,0.48754595]
[1746716980606,0.006,99655.0,99654.0,0.48754595]
[1746716981006,0.006,99655.0,99654.0,0.58789394]
[1746716981314,0.1021,99686.0,99685.0,0.2006018]
[1746716981510,0.1021,99686.0,99685.0,0.33218532]
[1746716982011,0.1021,99686.0,99685.0,0.34759308]
[1746716982514,0.68308424,99694.0,99692.0,0.2005878]
[1746716982812,0.0533,99693.0,99692.0,0.24325908]
[1746716983206,0.2538857,99693.0,99692.0,0.05392032]
[1746716983607,0.2538857,99693.0,99692.0,0.03850893]
[1746716983909,0.7538857,99693.0,99692.0,0.03850893]
[1746716984113,0.9218857,99693.0,99692.0,0.03850893]
[1746716984419,0.9807857,99693.0,99692.0,0.03850893]
[1746716985116,0.9847857,99693.0,99692.0,0.03850893]
[1746716986703,0.7792,99693.0,99692.0,0.24009673]
[1746716986909,0.7752,99693.0,99692.0,0.24109673]
[1746716987107,0.6072,99693.0,99692.0,0.24109673]
[1746716987305,0.502,99693.0,99692.0,0.24109673]
[1746716987618,0.502,99693.0,99692.0,0.29209673]
[1746716987806,0.502,99693.0,99692.0,0.30755283]
[1746716988311,0.2025857,99693.0,99692.0,0.05596503]
[1746716989019,0.2025857,99693.0,99692.0,0.0561416]
[1746716989317,0.2761,99693.0,99692.0,0.2567294]
[1746716989514,0.2761,99693.0,99692.0,0.3104294]
[1746716989712,0.4766857,99693.0,99692.0,0.3104294]
[1746716990109,0.4766857,99693.0,99692.0,0.1098416]
[1746716990311,0.2761,99693.0,99692.0,0.3104294]
[1746716990513,0.4766857,99693.0,99692.0,0.3104294]
[1746716990714,0.4766857,99693.0,99692.0,0.2949733]
[1746716991021,0.4766857,99693.0,99692.0,0.29497287]
[1746716991212,0.4766857,99693.0,99692.0,0.40401287]
[1746716991612,0.4766857,99693.0,99692.0,0.20342507]
[1746716991808,0.4766857,99693.0,99692.0,0.40401287]
[1746716992013,0.2761,99693.0,99692.0,0.40401287]
[1746716992214,0.2761,99693.0,99692.0,0.38833518]
[1746716992414,0.329,99693.0,99692.0,0.38833518]
[1746716992721,0.329,99693.0,99692.0,0.38819561]
[1746716993324,0.8903857,99693.0,99692.0,0.38819561]
[1746716993823,0.8903857,99693.0,99692.0,0.13390781]
[1746716994029,1.3903857,99693.0,99692.0,0.13390781]
[1746716994410,1.3903857,99693.0,99692.0,0.33449561]
[1746716994921,1.1898,99693.0,99692.0,0.33449561]
[1746716995223,1.0218,99693.0,99692.0,0.33449561]
[1746716995521,1.0218,99693.0,99692.0,0.35017336]
[1746716996119,1.0218,99693.0,99692.0,0.33449561]
[1746716996319,1.0218,99693.0,99692.0,0.35017336]
[1746716996720,1.2223857,99693.0,99692.0,0.35017336]
[1746716997220,1.1898,99693.0,99692.0,0.33349561]
[1746716997525,1.1898,99693.0,99692.0,0.35017336]
[1746716998019,0.829,99693.0,99692.0,0.35017336]
[1746716998220,0.67,99693.0,99692.0,0.35017336]
[1746716998422,0.67,99693.0,99692.0,0.45122729]
[1746716998623,0.17,99693.0,99692.0,0.45122729]
[1746716999221,0.002,99693.0,99692.0,0.45122729]
[1746717000220,0.002,99693.0,99692.0,0.45135635]
[1746717000418,0.002,99693.0,99692.0,0.43567986]
[1746717000621,0.002,99693.0,99692.0,0.45135635]
[1746717001219,0.002,99693.0,99692.0,0.42397684]
[1746717001419,0.002,99693.0,99692.0,0.45138036]
[1746717001619,0.002,99693.0,99692.0,0.43965333]
[1746717001822,0.002,99693.0,99692.0,0.4514107]
[1746717002420,0.002,99693.0,99692.0,0.4534107]
[1746717002621,0.002,99693.0,99692.0,0.4524107]
[1746717002820,0.002,99693.0,99692.0,0.4554107]
[1746717003322,0.002,99693.0,99692.0,0.4524107]
[1746717003522,0.002,99693.0,99692.0,0.4554107]
[1746717003916,0.002,99693.0,99692.0,0.4494107]
[1746717004119,0.002,99693.0,99692.0,0.4554107]
[1746717004621,0.002,99693.0,99692.0,0.45541067]
[1746717005523,0.002,99693.0,99692.0,0.35431067]
[1746717005728,0.002,99693.0,99692.0,0.35231067]
[1746717005914,0.002,99693.0,99692.0,0.35531067]
[1746717006119,0.1078,99693.0,99692.0,0.35531067]
[1746717006319,0.1078,99693.0,99692.0,0.40601067]
[1746717006523,0.1078,99693.0,99692.0,0.40550832]
[1746717006734,0.002,99693.0,99692.0,0.40550832]
[1746717007130,0.002,99693.0,99692.0,0.35480832]
[1746717007519,0.002,99693.0,99692.0,0.32787684]
[1746717008022,0.002,99693.0,99692.0,0.37857684]
[1746717008527,0.002,99693.0,99692.0,0.37457684]
[1746717008723,0.002,99693.0,99692.0,0.37757684]
[1746717009329,0.002,99693.0,99692.0,0.37457684]
[1746717009629,0.002,99693.0,99692.0,0.37757684]
[1746717010130,0.002,99693.0,99692.0,0.37457684]
[1746717010329,0.002,99693.0,99692.0,0.37557684]
[1746717010720,0.002,99693.0,99692.0,0.37357684]
[1746717011629,0.002,99693.0,99692.0,0.26453684]
[1746717011825,0.002,99693.0,99692.0,0.37353684]
[1746717012025,0.002,99693.0,99692.0,0.37453684]
[1746717012222,0.002,99693.0,99692.0,0.37353684]
[1746717012527,0.002,99693.0,99692.0,0.32483684]
[1746717013322,0.002,99693.0,99692.0,0.32283684]
[1746717013523,0.002,99693.0,99692.0,0.32483684]
[1746717014532,0.002,99693.0,99692.0,0.37923684]
[1746717016227,0.002,99693.0,99692.0,0.37723684]
[1746717016433,0.1,99700.0,99699.0,0.2005737]
[1746717016434,0.099,99700.0,99699.0,0.2005737]
[1746717016730,0.0501232,99740.0,99722.0,0.2005274]
[1746717016919,0.2005155,99728.0,99722.0,0.3149274]
[1746717017120,0.0501296,99727.0,99722.0,0.1144]
[1746717017319,0.0501296,99727.0,99722.0,0.20788854]
[1746717017320,0.1059,99723.0,99722.0,0.20788854]
[1746717017520,0.1059,99723.0,99722.0,0.26288854]
[1746717017734,0.002,99723.0,99722.0,0.26288854]
[1746717018030,0.002,99723.0,99722.0,0.31848854]
[1746717019037,0.005,99723.0,99722.0,0.31848854]
[1746717019437,0.0628,99723.0,99722.0,0.31848854]
[1746717019941,0.0618,99723.0,99722.0,0.26288854]
[1746717020328,0.0618,99723.0,99722.0,0.31848854]
[1746717020528,0.3111254,99723.0,99722.0,0.31848854]
[1746717020728,0.3131254,99723.0,99722.0,0.31848854]
[1746717020930,0.3131254,99723.0,99722.0,0.06236114]
[1746717021430,0.4811254,99723.0,99722.0,0.00736114]
[1746717021753,0.2005395,99716.0,99715.0,0.11436]
[1746717021937,0.2005395,99716.0,99715.0,0.12180131]
[1746717022138,0.3685395,99716.0,99715.0,0.12180131]
[1746717022335,0.8685395,99716.0,99715.0,0.00744131]
[1746717022530,0.8253,99716.0,99715.0,0.2005415]
[1746717022931,1.0268395,99716.0,99715.0,0.2005415]
[1746717023235,0.8598395,99716.0,99715.0,0.2005415]
[1746717024240,1.0278395,99716.0,99715.0,0.20791828]
[1746717024736,1.0278395,99716.0,99715.0,0.00737678]
[1746717024935,0.2005455,99713.0,99712.0,0.3045782]
[1746717025139,0.5613455,99713.0,99712.0,0.3045782]
[1746717026239,0.7293455,99713.0,99712.0,0.3045782]
[1746717026438,0.7303455,99713.0,99712.0,0.3045782]
[1746717026940,0.5298,99713.0,99712.0,0.3045782]
[1746717027144,0.3628,99713.0,99712.0,0.3045782]
[1746717027436,0.002,99713.0,99712.0,0.3045782]
[1746717027634,0.002,99713.0,99712.0,0.31192488]
[1746717028427,0.002,99713.0,99712.0,0.26178818]
[1746717028832,0.00220157,99713.0,99712.0,0.26178818]
[1746717029032,0.36300157,99713.0,99712.0,0.26178818]
[1746717029438,0.56354707,99713.0,99712.0,0.06124668]
[1746717029828,0.56354707,99713.0,99712.0,0.26179418]
[1746717030742,0.56254707,99713.0,99712.0,0.26279418]
[1746717031140,0.73054707,99713.0,99712.0,0.26279418]
[1746717031338,0.72954707,99713.0,99712.0,0.26279418]